bitfinex-derivatives/quotes_BTCF0:USTF0_20250320
["timestamp","ask_amount","ask_price","bid_price","bid_amount"]
[1742472456303,0.12701688,85379.0,85378.0,0.2155702]
[1742472456910,0.19161688,85379.0,85378.0,0.2155702]
[1742472457111,0.19161688,85379.0,85378.0,0.0984]
[1742472457308,0.19261688,85379.0,85378.0,0.2155707]
[1742472457725,0.19361688,85379.0,85378.0,0.10703967]
[1742472458011,0.19361688,85379.0,85378.0,0.0984]
[1742472458213,0.19361688,85379.0,85378.0,0.0659]
[1742472458610,0.19361688,85379.0,85378.0,0.1830707]
[1742472458811,0.19352081,85379.0,85378.0,0.0659]
[1742472460511,0.29352081,85379.0,85378.0,0.0659]
[1742472460716,0.1171761,85374.0,85373.0,0.0303]
[1742472461013,0.12692761,85374.0,85373.0,0.0303]
[1742472461404,0.19092761,85374.0,85373.0,0.1474775]
[1742472462115,0.19192761,85374.0,85373.0,0.1474775]
[1742472462315,0.19192761,85374.0,85373.0,0.0303]
[1742472463709,0.19292761,85374.0,85373.0,0.0303]
[1742472464412,0.19292761,85374.0,85373.0,0.0935]
[1742472464714,0.19308279,85374.0,85373.0,0.0935]
[1742472465018,0.19308279,85374.0,85373.0,0.0632]
[1742472467513,0.19308279,85374.0,85373.0,0.1803775]
[1742472467806,0.19308279,85374.0,85373.0,0.0632]
[1742472468014,0.19308279,85374.0,85373.0,0.1803775]
[1742472468215,0.29813813,85374.0,85373.0,0.1803775]
[1742472468414,0.29813813,85374.0,85373.0,0.0632]
[1742472468721,0.29810793,85374.0,85373.0,0.1803775]
[1742472470725,0.29812036,85374.0,85373.0,0.1803775]
[1742472472524,0.29814,85374.0,85373.0,0.1803775]
[1742472474220,0.29815299,85374.0,85373.0,0.1803775]
[1742472475321,0.19309765,85374.0,85373.0,0.1803775]
[1742472476319,0.16189765,85374.0,85373.0,0.1803775]
[1742472476521,0.01202889,85374.0,85373.0,0.1803775]
[1742472476717,0.01202889,85374.0,85373.0,0.2948575]
[1742472476917,0.12920499,85374.0,85373.0,1.7948575]
[1742472477117,0.01202889,85374.0,85373.0,1.6803775]
[1742472477319,0.00060001,85394.0,85383.0,0.1171638]
[1742472477623,0.1208776,85390.0,85383.0,0.2318038]
[1742472477925,0.1171597,85386.0,85383.0,1.7318038]
[1742472478221,0.058579,85388.0,85383.0,1.7318038]
[1742472478428,0.1171599,85386.0,85383.0,1.7318038]
[1742472478629,0.29291204,85384.0,85383.0,1.7973038]
[1742472479012,0.17574964,85384.0,85383.0,1.7973038]
[1742472479219,0.17574964,85384.0,85383.0,1.80878025]
[1742472479420,0.0585644,85409.0,85390.0,0.1171542]
[1742472479724,0.1171493,85394.0,85390.0,0.5925942]
[1742472480119,0.0623,85397.0,85390.0,0.5925942]
[1742472480120,0.0303,85397.0,85390.0,0.5925942]
[1742472480320,0.17533997,85394.0,85393.0,0.1171501]
[1742472480919,0.18489711,85394.0,85393.0,0.1171501]
[1742472481926,0.30204581,85394.0,85393.0,0.1171501]
[1742472482826,0.33484581,85394.0,85393.0,0.1171501]
[1742472483128,0.32528867,85394.0,85393.0,0.1171501]
[1742472484122,0.1499487,85394.0,85393.0,0.1171501]
[1742472484929,0.0328,85394.0,85393.0,0.1171501]
[1742472485430,0.1499487,85394.0,85393.0,0.1171501]
[1742472488329,0.1499487,85394.0,85393.0,0.1817501]
[1742472489448,0.15964281,85394.0,85393.0,0.1817501]
[1742472489937,0.04249411,85394.0,85393.0,0.1817501]
[1742472490328,0.04245524,85394.0,85393.0,0.1817501]
[1742472491041,0.0328,85394.0,85393.0,0.1817501]
[1742472491638,0.1756976,85411.0,85410.0,0.1756867]
[1742472491838,0.1756976,85411.0,85410.0,0.1728427]
[1742472493139,0.2118976,85411.0,85410.0,0.1728427]
[1742472493524,0.2148976,85411.0,85410.0,0.1728427]
[1742472493728,0.0392,85411.0,85410.0,0.1728427]
[1742472494123,0.0392,85411.0,85410.0,0.5336427]
[1742472494837,0.00017565,85419.0,85418.0,0.1171158]
[1742472495025,0.00017565,85419.0,85418.0,0.24324072]
[1742472495237,0.00980908,85419.0,85418.0,0.24324072]
[1742472495633,0.12692348,85419.0,85418.0,0.24324072]
[1742472495829,0.15742348,85419.0,85418.0,0.24324072]
[1742472496030,0.16242348,85419.0,85418.0,0.24324072]
[1742472496238,0.16742348,85419.0,85418.0,0.24324072]
[1742472496935,0.05030908,85419.0,85418.0,0.24324072]
[1742472497638,0.05030908,85419.0,85418.0,0.2518651]
[1742472498038,0.16742348,85419.0,85418.0,0.2518651]
[1742472498541,0.05030908,85419.0,85418.0,0.2518651]
[1742472500343,0.05030908,85419.0,85418.0,0.2827651]
[1742472501938,0.05031067,85419.0,85418.0,0.2827651]
[1742472502243,0.0317,85429.0,85428.0,0.1171021]
[1742472502863,0.1488007,85429.0,85428.0,0.1482021]
[1742472503662,0.1538007,85429.0,85428.0,0.1482021]
[1742472503962,0.005,85429.0,85428.0,0.1482021]
[1742472504358,0.1221007,85429.0,85428.0,0.1482021]
[1742472504757,0.1271007,85429.0,85428.0,0.1482021]
[1742472506053,0.1921007,85429.0,85428.0,0.1482021]
[1742472506859,0.1921007,85429.0,85428.0,0.1801021]
[1742472515270,0.20168144,85429.0,85428.0,0.1801021]
[1742472515673,0.20168144,85429.0,85428.0,0.2616821]
[1742472515870,0.1171117,85421.0,85418.0,0.0205493]
[1742472516071,0.4991403,85421.0,85419.0,0.11352]
[1742472516267,0.68179244,85421.0,85419.0,0.11352]
[1742472516772,0.69424409,85421.0,85419.0,0.11356]
[1742472516968,0.62314409,85421.0,85419.0,4e-05]
[1742472517167,0.62814409,85421.0,85419.0,0.1171537]
[1742472517569,0.61855791,85421.0,85419.0,0.1171537]
[1742472517772,0.58965791,85421.0,85420.0,0.11728865]
[1742472518376,0.22885791,85421.0,85420.0,0.11728865]
[1742472518575,0.23385791,85421.0,85420.0,0.11728865]
[1742472518977,0.59465791,85421.0,85420.0,0.11728865]
[1742472519872,0.59465593,85421.0,85420.0,0.11728865]
[1742472520075,0.23385593,85421.0,85420.0,0.14728865]
[1742472520482,0.59465593,85421.0,85420.0,0.14728865]
[1742472520678,0.5822117,85421.0,85420.0,0.14728865]
[1742472520886,0.59466609,85421.0,85420.0,0.14728865]
[1742472521876,0.69466609,85421.0,85420.0,0.11728865]
[1742472522282,0.59466609,85421.0,85420.0,0.11728865]
[1742472522781,0.59466609,85421.0,85420.0,0.14728865]
[1742472523086,0.59466609,85421.0,85420.0,0.18058865]
[1742472523678,0.59467143,85421.0,85420.0,0.18058865]
[1742472526083,0.59467352,85421.0,85420.0,0.18058865]
[1742472526284,0.5822117,85421.0,85420.0,0.18058865]
[1742472527190,0.2214117,85421.0,85420.0,0.18058865]
[1742472527787,0.23102829,85421.0,85420.0,0.18058865]
[1742472528283,0.20072829,85421.0,85420.0,0.18058865]
[1742472528792,0.20072844,85421.0,85420.0,0.18058865]
[1742472528998,0.08361674,85421.0,85420.0,0.18058865]
[1742472529286,0.01961674,85421.0,85420.0,0.54138865]
[1742472529483,0.17489852,85426.0,85425.0,0.1171062]
[1742472529674,0.17489852,85426.0,85425.0,0.2303062]
[1742472530389,0.17489852,85426.0,85425.0,0.2927062]
[1742472531292,0.29200332,85426.0,85425.0,0.2927062]
[1742472531592,0.35900332,85426.0,85425.0,0.2927062]
[1742472531884,0.36000332,85426.0,85425.0,1.7927062]
[1742472532283,0.36000332,85426.0,85425.0,1.7926662]
[1742472532480,0.35400332,85426.0,85425.0,1.7926662]
[1742472532688,0.35900332,85426.0,85425.0,1.7926662]
[1742472533085,0.1841048,85426.0,85425.0,1.7926662]
[1742472534091,0.067,85426.0,85425.0,1.7926662]
[1742472534488,0.1841048,85426.0,85425.0,1.7926662]
[1742472537285,0.067,85426.0,85425.0,1.7926662]
[1742472547896,0.036,85426.0,85425.0,1.7926662]
[1742472548102,0.25731535,85436.0,85433.0,0.1170952]
[1742472548298,0.25731535,85436.0,85435.0,0.1170925]
[1742472548705,0.25731535,85436.0,85435.0,0.1496925]
[1742472549091,0.28821535,85436.0,85435.0,0.19342364]
[1742472549401,0.29421535,85436.0,85435.0,0.19342364]
[1742472549790,0.29521535,85436.0,85435.0,0.19342364]
[1742472551298,0.17812405,85436.0,85435.0,0.19342364]
[1742472551796,0.0369,85436.0,85435.0,0.19342364]
[1742472552300,0.04932201,85436.0,85435.0,0.19342364]
[1742472552500,0.16641311,85436.0,85435.0,0.19342364]
[1742472553109,0.19671311,85436.0,85435.0,0.1815925]
[1742472553299,0.19671311,85436.0,85435.0,0.1496925]
[1742472554102,0.19671311,85436.0,85435.0,0.1616985]
[1742472554306,0.19672106,85436.0,85435.0,0.1616985]
[1742472556907,0.19672106,85436.0,85435.0,0.1925985]
[1742472557107,0.19672106,85436.0,85435.0,0.1805925]
[1742472557308,0.19672106,85436.0,85435.0,0.1496925]
[1742472557809,0.25365316,85436.0,85435.0,0.1496925]
[1742472558000,0.26328372,85436.0,85435.0,0.1496925]
[1742472558909,0.25365316,85436.0,85435.0,0.1496925]
[1742472559301,0.25365316,85436.0,85435.0,0.1921928]
[1742472560210,0.25365316,85436.0,85435.0,0.1805925]
[1742472561612,0.19672106,85436.0,85435.0,0.1805925]
[1742472563713,0.1842911,85436.0,85435.0,0.1805925]
[1742472564802,0.19677524,85436.0,85435.0,0.1805925]
[1742472565509,0.29677524,85436.0,85435.0,0.1805925]
[1742472565714,0.29677524,85436.0,85424.0,0.50905028]
[1742472565715,0.1171062,85425.0,85424.0,0.50905028]
[1742472565908,0.12959034,85425.0,85424.0,0.49756499]
[1742472566104,0.19398584,85425.0,85424.0,0.49756499]
[1742472567105,0.22538584,85425.0,85424.0,0.49756499]
[1742472567307,0.22738584,85425.0,85424.0,0.55956499]
[1742472568713,0.22738584,85425.0,85424.0,0.59186499]
[1742472569310,0.19428584,85425.0,85424.0,0.59186499]
[1742472569520,0.19428584,85425.0,85424.0,0.3830777]
[1742472572018,0.19428584,85425.0,85424.0,0.2699577]
[1742472572417,0.16288584,85425.0,85424.0,0.2699577]
[1742472572712,0.04577964,85425.0,85424.0,0.2699577]
[1742472573020,0.002,85425.0,85424.0,0.2699577]
[1742472577022,0.14240266,85425.0,85424.0,0.2699577]
[1742472580726,0.002,85425.0,85424.0,0.2699577]
[1742472583021,0.002,85425.0,85424.0,0.3507777]
[1742472583425,0.0637,85425.0,85424.0,0.3507777]
[1742472584231,0.0637,85425.0,85424.0,0.55956499]
[1742472585323,0.14040266,85434.0,85433.0,0.1170952]
[1742472585528,0.15284483,85434.0,85433.0,0.1170952]
[1742472585726,0.26993873,85434.0,85433.0,0.1170952]
[1742472585927,0.26993873,85434.0,85433.0,0.1500952]
[1742472586725,0.26993873,85434.0,85433.0,0.1821952]
[1742472586920,0.27193873,85434.0,85433.0,0.1821952]
[1742472587126,0.30513873,85434.0,85433.0,0.1821952]
[1742472587323,0.33683873,85434.0,85433.0,0.1821952]
[1742472587935,0.19643607,85434.0,85433.0,0.1821952]
[1742472590027,0.22943607,85434.0,85433.0,0.1821952]
[1742472591334,0.22943607,85434.0,85433.0,0.1491952]
[1742472591539,0.22947224,85434.0,85433.0,0.1809952]
[1742472592238,0.1170952,85433.0,85432.0,4e-05]
[1742472592441,0.22957354,85433.0,85432.0,0.1171366]
[1742472592642,0.19117354,85433.0,85432.0,0.1171366]
[1742472592938,0.20088327,85433.0,85432.0,0.1171366]
[1742472593133,0.21276243,85433.0,85432.0,0.1171366]
[1742472593340,0.20088327,85433.0,85432.0,0.1170966]
[1742472593531,0.2009243,85433.0,85432.0,0.1170966]
[1742472593730,0.2019243,85433.0,85432.0,0.1821966]
[1742472594942,0.2019243,85433.0,85432.0,0.19364588]
[1742472595136,0.25885942,85433.0,85432.0,0.19364588]
[1742472595640,0.25885942,85433.0,85432.0,0.1821966]
[1742472595937,0.24914982,85433.0,85432.0,0.1821966]
[1742472597539,0.24910284,85433.0,85432.0,0.1821966]
[1742472599344,0.23663032,85433.0,85432.0,0.1821966]
[1742472599644,0.19216367,85433.0,85432.0,0.1821966]
[1742472602440,0.30216367,85433.0,85432.0,0.0651]
[1742472602635,0.1170966,85432.0,85431.0,4e-05]
[1742472602839,0.1170966,85432.0,85420.0,0.20896294]
[1742472602840,0.1171117,85421.0,85420.0,0.20896294]
[1742472603039,0.12958017,85421.0,85420.0,0.20896294]
[1742472603233,0.23168017,85421.0,85420.0,0.32607594]
[1742472603735,0.33168017,85421.0,85420.0,0.20896294]
[1742472603941,0.26058017,85421.0,85420.0,0.20896294]
[1742472604138,0.26058017,85421.0,85420.0,0.32607594]
[1742472604630,0.33168017,85421.0,85420.0,0.32607594]
[1742472605042,0.33268017,85421.0,85420.0,0.20896294]
[1742472605240,0.70498366,85421.0,85420.0,0.20896294]
[1742472605640,0.70498366,85421.0,85420.0,0.00017565]
[1742472606641,0.117113,85420.0,85419.0,4e-05]
[1742472606929,0.13958147,85420.0,85419.0,4e-05]
[1742472607134,0.288713,85420.0,85419.0,4e-05]
[1742472607334,0.117124,85412.0,85411.0,0.0313]
[1742472607534,0.146024,85412.0,85411.0,0.1484254]
[1742472607745,0.12960179,85412.0,85411.0,0.1484254]
[1742472608143,0.180324,85412.0,85411.0,0.1790254]
[1742472608734,0.180324,85412.0,85411.0,0.2122254]
[1742472609138,0.181324,85412.0,85411.0,0.2122254]
[1742472609535,0.034,85412.0,85411.0,0.2122254]
[1742472609840,0.0106029,85412.0,85411.0,0.2122254]
[1742472610335,0.0604,85428.0,85422.0,0.1171103]
[1742472610538,0.21087189,85432.0,85431.0,0.117098]
[1742472610743,0.21027188,85432.0,85431.0,0.117098]
[1742472611043,0.21027188,85432.0,85431.0,1.617098]
[1742472611233,0.21027188,85432.0,85431.0,1.62905621]
[1742472611436,0.21027188,85432.0,85431.0,1.69125621]
[1742472611645,0.21027188,85432.0,85431.0,0.19125621]
[1742472611851,0.1170919,85436.0,85435.0,0.1170925]
[1742472612144,0.00017565,85437.0,85436.0,0.1170911]
[1742472612344,0.11726535,85437.0,85436.0,0.1170911]
[1742472614944,0.2223537,85437.0,85436.0,0.1170911]
[1742472615342,0.1170925,85435.0,85434.0,0.0622]
[1742472615741,0.1170925,85435.0,85434.0,0.1792939]
[1742472616046,0.2117925,85435.0,85434.0,0.1792939]
[1742472616253,0.0947,85435.0,85434.0,0.1792939]
[1742472616454,0.0316,85435.0,85434.0,0.1792939]
[1742472616745,0.1486925,85435.0,85434.0,0.1792939]
[1742472618739,0.0316,85435.0,85434.0,0.1792939]
[1742472618942,0.1170925,85435.0,85434.0,0.2378401]
[1742472622651,0.1477925,85435.0,85434.0,0.2378401]
[1742472623049,0.0307,85435.0,85434.0,0.2378401]
[1742472623650,0.00017565,85437.0,85436.0,0.1170911]
[1742472625554,0.11726535,85437.0,85436.0,0.1170911]
[1742472625753,0.00017565,85437.0,85436.0,0.1809911]
[1742472626564,0.11726535,85437.0,85436.0,0.1809911]
[1742472626741,0.22232708,85437.0,85436.0,0.1809911]
[1742472626945,0.10523738,85437.0,85436.0,0.1809911]
[1742472627555,0.10523738,85437.0,85436.0,0.2940711]
[1742472631050,0.00017565,85437.0,85436.0,0.2940711]
[1742472632561,0.03257565,85437.0,85436.0,0.2940711]
[1742472634164,0.00017565,85437.0,85436.0,0.2940711]
[1742472634958,0.10506173,85443.0,85442.0,0.1170829]
[1742472635153,0.10506173,85443.0,85442.0,0.2301629]
[1742472635362,0.10506173,85443.0,85442.0,0.3244629]
[1742472635752,0.1401178,85449.0,85448.0,0.1170747]
[1742472635954,0.0328,85454.0,85453.0,0.1170678]
[1742472636571,0.0328,85454.0,85453.0,0.1800678]
[1742472636869,0.0328,85454.0,85453.0,0.19207304]
[1742472637252,0.0328,85454.0,85453.0,0.20072608]
[1742472638149,0.3608,85468.0,85457.0,0.0585306]
[1742472638355,0.0312,85467.0,85466.0,0.11705]
[1742472638559,0.1582486,85467.0,85466.0,0.11705]
[1742472639254,0.0412,85467.0,85466.0,0.11705]
[1742472639451,0.1482486,85467.0,85466.0,0.11705]
[1742472640462,0.1482486,85467.0,85466.0,0.14925]
[1742472640662,0.0312,85467.0,85466.0,0.14925]
[1742472640864,4e-05,85468.0,85467.0,0.1170486]
[1742472641163,4e-05,85468.0,85467.0,0.1492486]
[1742472641664,0.0916225,85470.0,85467.0,0.1492486]
[1742472641864,0.117046,85469.0,85468.0,0.1170459]
[1742472642073,0.1501845,85470.0,85469.0,0.1170459]
[1742472642368,0.1170845,85470.0,85469.0,0.1170459]
[1742472642569,0.1170845,85470.0,85469.0,0.1501459]
[1742472643273,0.4778845,85470.0,85469.0,0.1501459]
[1742472643972,0.4778845,85470.0,85463.0,0.0585266]
[1742472643973,0.1170528,85464.0,85463.0,0.0585266]
[1742472648375,0.0329,85465.0,85464.0,0.1170528]
[1742472648567,0.0329,85465.0,85464.0,0.1501528]
[1742472649270,0.1499514,85465.0,85464.0,0.1501528]
[1742472650674,0.0329,85465.0,85464.0,0.1809528]
[1742472651173,4e-05,85470.0,85469.0,0.1170459]
[1742472651369,0.1497845,85470.0,85469.0,0.1830459]
[1742472651770,0.1497445,85470.0,85469.0,0.1830459]
[1742472652579,0.1497445,85470.0,85469.0,0.0332]
[1742472652780,0.1497445,85470.0,85469.0,0.1502459]
[1742472655879,0.1497445,85470.0,85469.0,0.0332]
[1742472656376,0.1497445,85470.0,85469.0,0.1502459]
[1742472656976,0.1813445,85470.0,85469.0,0.1502459]
[1742472657476,0.1813445,85470.0,85469.0,0.1830459]
[1742472657669,0.1813445,85470.0,85469.0,0.1170459]
[1742472657875,0.1813445,85470.0,85461.0,0.0585281]
[1742472657876,0.1170555,85462.0,85461.0,0.0585281]
[1742472658278,0.1170555,85462.0,85461.0,0.0913281]
[1742472658476,0.1818555,85462.0,85461.0,0.0913281]
[1742472658975,0.1818555,85462.0,85461.0,0.1215281]
[1742472660281,0.1818555,85462.0,85461.0,0.063]
[1742472660483,0.1818555,85462.0,76000.0,0.0257]
[1742472660484,0.1170664,85454.0,85451.0,0.11304]
[1742472660678,0.1170664,85454.0,85453.0,0.1170678]
[1742472660880,0.1798664,85454.0,85453.0,0.1170678]
[1742472661384,0.11364001,85463.0,85461.0,0.1170555]
[1742472661685,0.2071834,85462.0,85461.0,0.1170555]
[1742472661875,0.2502834,85462.0,85461.0,0.1170555]
[1742472663286,0.2502834,85462.0,85461.0,0.1480555]
[1742472663687,0.3502834,85462.0,85461.0,0.1480555]
[1742472663882,0.2625543,85462.0,85461.0,0.1480555]
[1742472664076,0.26255491,85462.0,85461.0,0.031]
[1742472664281,0.1170664,85454.0,85453.0,0.06710622]
[1742472664588,0.1170664,85454.0,85453.0,0.0895338]
[1742472664785,0.3147664,85454.0,85453.0,0.0895338]
[1742472664982,0.2147664,85454.0,85453.0,0.0895338]
[1742472665591,0.22707291,85454.0,85453.0,0.0895338]
[1742472665787,0.2147664,85454.0,85453.0,0.0895338]
[1742472666091,0.3147664,85454.0,85453.0,0.0895338]
[1742472666691,0.3147664,85454.0,85453.0,0.09835007]
[1742472667492,0.2147664,85454.0,85453.0,0.09835007]
[1742472667986,0.1819664,85454.0,85453.0,0.09835007]
[1742472668389,0.1170628,85458.0,85457.0,0.117061]
[1742472668785,0.1170628,85458.0,85457.0,0.148161]
[1742472668987,0.1789628,85458.0,85457.0,0.148161]
[1742472672698,0.19126903,85458.0,85457.0,0.148161]
[1742472673895,0.19127016,85458.0,85457.0,0.148161]
[1742472674589,0.01230736,85458.0,85457.0,0.148161]
[1742472675185,0.06484,85467.0,85463.0,0.0585257]
[1742472675382,0.18786386,85466.0,85465.0,0.11705]
[1742472675587,0.23786386,85466.0,85465.0,0.11705]
[1742472675899,0.30266386,85466.0,85465.0,0.11705]
[1742472676990,0.40266386,85466.0,85465.0,0.11705]
[1742472677190,0.1170514,85465.0,85463.0,0.0585257]
[1742472677390,0.1270514,85465.0,85464.0,0.1170528]
[1742472677582,0.13934117,85465.0,85464.0,0.1170528]
[1742472677789,0.13934119,85465.0,85464.0,0.1170528]
[1742472678798,0.1170582,85460.0,85459.0,0.0585295]
[1742472678995,0.1170582,85460.0,85458.0,0.0585305]
[1742472678996,0.1755949,85458.0,85457.0,0.1170613]
[1742472679201,0.18788469,85458.0,85457.0,0.1170613]
[1742472679391,0.21678469,85458.0,85457.0,0.1170613]
[1742472679786,0.28788469,85458.0,85457.0,0.1170613]
[1742472679987,0.0585311,85457.0,85451.0,0.0585348]
[1742472680203,0.1170706,85451.0,85450.0,4e-05]
[1742472680393,0.17120218,85451.0,85450.0,4e-05]
[1742472680589,0.20420218,85451.0,85450.0,0.1171119]
[1742472680905,0.1170733,85449.0,85448.0,0.20878729]
[1742472681197,0.1170733,85449.0,85448.0,0.20882729]
[1742472681198,0.30940488,85449.0,85448.0,0.20882729]
[1742472681492,0.3094273,85449.0,85448.0,0.20882729]
[1742472681693,0.1170774,85446.0,85444.0,0.0313]
[1742472681893,0.2484314,85446.0,85444.0,0.0313]
[1742472682298,0.2484314,85446.0,85441.0,0.0313]
[1742472682498,0.2735314,85446.0,85441.0,0.0313]
[1742472682997,0.2417314,85446.0,85444.0,4e-05]
[1742472683199,0.2407314,85446.0,85444.0,4e-05]
[1742472683599,0.24073945,85446.0,85444.0,4e-05]
[1742472684396,0.24173945,85446.0,85444.0,4e-05]
[1742472684994,0.29843945,85446.0,85444.0,4e-05]
[1742472685198,0.24173945,85446.0,85444.0,4e-05]
[1742472687307,0.23023945,85446.0,85444.0,4e-05]
[1742472687501,0.29843945,85446.0,85444.0,4e-05]
[1742472687901,0.19843945,85446.0,85445.0,0.11725434]
[1742472688103,0.31151945,85446.0,85445.0,0.14835434]
[1742472688300,0.26150743,85446.0,85445.0,0.17945434]
[1742472688601,0.2491574,85446.0,85445.0,0.17945434]
[1742472689403,0.021,85446.0,85445.0,0.17945434]
[1742472690001,0.001,85446.0,85445.0,0.19122068]
[1742472690202,0.1180774,85446.0,85445.0,0.19122068]
[1742472690800,0.1180774,85446.0,85445.0,0.19222068]
[1742472691609,0.1170774,85446.0,85445.0,0.19322068]
[1742472692000,0.1170774,85446.0,85445.0,0.18145434]
[1742472692397,0.1170774,85446.0,85445.0,0.18045434]
[1742472693514,0.1170774,85446.0,85445.0,0.19233218]
[1742472693704,0.1170774,85446.0,85445.0,0.17945434]
[1742472695403,0.1170774,85446.0,85445.0,0.19135707]
[1742472697814,0.2170774,85446.0,85445.0,0.17945434]
[1742472698016,0.1170774,85446.0,85445.0,0.17945434]
[1742472698720,0.1180774,85446.0,85445.0,0.17945434]
[1742472699421,0.1180774,85446.0,85445.0,0.19107661]
[1742472700020,0.1190774,85446.0,85445.0,0.19107661]
[1742472700326,0.002,85446.0,85445.0,0.19107661]
[1742472700810,0.1180774,85446.0,85445.0,0.19107661]
[1742472701012,0.1190774,85446.0,85445.0,0.17945434]
[1742472701627,0.1170774,85446.0,85445.0,0.17945434]
[1742472702519,0.1170774,85446.0,85445.0,0.19125733]
[1742472702724,0.1170774,85446.0,85445.0,0.17945434]
[1742472704627,0.1180774,85446.0,85445.0,0.17945434]
[1742472706626,0.1190774,85446.0,85445.0,0.17945434]
[1742472707229,0.3227774,85446.0,85445.0,0.17945434]
[1742472707425,0.33510407,85446.0,85445.0,0.06237554]
[1742472707629,0.40620407,85446.0,85445.0,0.17945434]
[1742472707924,0.1170966,85433.0,85432.0,0.1170955]
[1742472708118,0.1488966,85433.0,85432.0,0.1485955]
[1742472708317,0.2122966,85433.0,85432.0,0.1485955]
[1742472708720,0.1804966,85433.0,85432.0,0.1485955]
[1742472708920,0.2804966,85433.0,85432.0,0.1485955]
[1742472709133,0.1804966,85433.0,85432.0,0.1505955]
[1742472709320,0.2113966,85433.0,85432.0,0.1832955]
[1742472709524,0.61602138,85433.0,85432.0,0.1832955]
[1742472709823,0.7945633,85433.0,85432.0,0.0662]
[1742472710020,0.73793042,85433.0,85432.0,0.002]
[1742472710219,0.1170966,85432.0,85431.0,0.19527978]
[1742472710417,0.1170966,85432.0,85429.0,4e-05]
[1742472710418,0.1170993,85430.0,85429.0,4e-05]
[1742472710729,0.1171062,85425.0,85423.0,0.19527978]
[1742472710932,0.5425529,85425.0,85423.0,0.19527978]
[1742472711132,0.5925529,85425.0,85423.0,0.19527978]
[1742472711328,0.5905529,85425.0,85423.0,0.19527978]
[1742472711531,0.6238529,85425.0,85423.0,0.19527978]
[1742472711928,0.62478285,85425.0,85423.0,0.19527978]
[1742472712435,0.55458285,85425.0,85423.0,0.19527978]
[1742472712729,0.62278285,85425.0,85423.0,0.19527978]
[1742472713130,0.62278285,85425.0,85423.0,0.31238828]
[1742472713324,0.62278285,85425.0,85424.0,0.15028314]
[1742472713325,0.55578285,85425.0,85424.0,0.15028314]
[1742472713525,0.55578285,85425.0,85424.0,0.18068314]
[1742472713729,0.62378285,85425.0,85424.0,0.06357554]
[1742472714331,0.62379988,85425.0,85424.0,0.06357554]
[1742472714537,0.6114862,85425.0,85424.0,0.18068314]
[1742472714741,0.6144862,85425.0,85424.0,0.18068314]
[1742472715229,0.6174862,85425.0,85424.0,0.18068314]
[1742472715436,0.6174862,85425.0,85419.0,0.0585566]
[1742472715437,0.0585568,85420.0,85405.0,4e-05]
[1742472715639,0.4779172,85417.0,85413.0,0.0323]
[1742472715839,0.8079172,85417.0,85413.0,0.0323]
[1742472716135,0.8079172,85417.0,85413.0,0.03234]
[1742472716136,0.82023015,85417.0,85413.0,0.03234]
[1742472716335,0.1171213,85414.0,85413.0,0.03234]
[1742472716537,0.1371213,85414.0,85413.0,0.03234]
[1742472716737,0.2128213,85414.0,85413.0,0.03234]
[1742472717037,0.2374213,85414.0,85413.0,0.1494626]
[1742472717338,0.24908882,85414.0,85413.0,0.03234]
[1742472717541,0.31198882,85414.0,85413.0,0.09554]
[1742472717730,0.24908882,85414.0,85413.0,0.2126626]
[1742472718042,0.3003213,85414.0,85413.0,0.09554]
[1742472718539,0.3013213,85414.0,85413.0,0.09554]
[1742472719039,0.3013213,85414.0,85413.0,0.06394]
[1742472719236,0.3033213,85414.0,85413.0,0.06394]
[1742472720633,0.3033213,85414.0,85413.0,0.1810626]
[1742472720941,0.2033213,85414.0,85413.0,0.1810626]
[1742472722237,0.1401213,85414.0,85413.0,0.192925]
[1742472724437,0.2391213,85414.0,85413.0,0.192925]
[1742472724645,0.2391213,85414.0,85413.0,0.06394]
[1742472724839,0.3026213,85414.0,85413.0,0.06394]
[1742472725031,0.2026213,85414.0,85413.0,0.06394]
[1742472725343,0.3026213,85414.0,85413.0,0.06394]
[1742472725544,0.3026213,85414.0,85413.0,0.1810626]
[1742472725739,0.3036213,85414.0,85413.0,0.1810626]
[1742472727142,0.3036213,85414.0,85413.0,0.06394]
[1742472730146,0.4171813,85414.0,85413.0,0.06394]
[1742472732740,0.4171413,85414.0,85413.0,0.0639]
[1742472733747,0.4171413,85414.0,85413.0,0.1810226]
[1742472736443,0.2907413,85414.0,85413.0,0.1810226]
[1742472736649,0.1401213,85414.0,85413.0,0.1810226]
[1742472737751,0.1411213,85414.0,85413.0,0.1810226]
[1742472738055,0.15328149,85414.0,85413.0,0.1810226]
[1742472738441,0.14928149,85414.0,85413.0,0.1810226]
[1742472738751,0.15228149,85414.0,85413.0,0.1810226]
[1742472739252,0.15128149,85414.0,85413.0,0.1810226]
[1742472739443,0.15328149,85414.0,85413.0,0.1810226]
[1742472740254,0.15128149,85414.0,85413.0,0.1810226]
[1742472740445,0.15328149,85414.0,85413.0,0.1810226]
[1742472740852,0.15128149,85414.0,85413.0,0.1810226]
[1742472741048,0.15328149,85414.0,85413.0,0.1810226]
[1742472741354,0.15331673,85414.0,85413.0,0.1810226]
[1742472741542,0.3853487,85414.0,85413.0,0.1810226]
[1742472742353,0.23603197,85414.0,85413.0,0.1810226]
[1742472743551,0.2101767,85419.0,85418.0,0.1171158]
[1742472743753,0.4779007,85429.0,85428.0,0.1171021]
[1742472744741,0.4779007,85429.0,85428.0,0.15905565]
[1742472745146,0.4779007,85429.0,85428.0,0.1471021]
[1742472746141,0.1171007,85429.0,85428.0,0.1481021]
[1742472746657,0.1181007,85429.0,85428.0,0.1481021]
[1742472746856,0.1181007,85429.0,85428.0,0.1804021]
[1742472747743,0.4181007,85429.0,85428.0,0.001]
[1742472747944,0.1171021,85428.0,85427.0,0.03294]
[1742472748249,0.26963193,85428.0,85427.0,4e-05]
[1742472748451,0.1171172,85417.0,85416.0,0.058559]
[1742472749448,0.1475172,85417.0,85416.0,0.090959]
[1742472749643,0.1781172,85417.0,85416.0,0.123359]
[1742472749848,0.2399172,85417.0,85416.0,0.0648]
[1742472750048,0.1781172,85417.0,85416.0,0.1819185]
[1742472750957,0.1781172,85417.0,85416.0,0.1839185]
[1742472751356,0.1781172,85417.0,85416.0,0.1859185]
[1742472753352,0.1475172,85417.0,85416.0,0.1859185]
[1742472753557,0.1171172,85417.0,85416.0,0.1859185]
[1742472754048,0.392,85418.0,85417.0,0.1171172]
[1742472754254,0.5091158,85418.0,85417.0,0.1821172]
[1742472754445,0.1483158,85418.0,85417.0,0.1821172]
[1742472755258,0.1483158,85418.0,85417.0,0.1841172]
[1742472755460,0.1483158,85418.0,85417.0,0.1861172]
[1742472756361,0.0312,85418.0,85417.0,0.1861172]
[1742472756562,0.1171142,85420.0,85419.0,0.1171144]
[1742472757061,0.1171142,85420.0,85419.0,0.1821144]
[1742472757252,0.3608,85425.0,85422.0,0.0585551]
[1742472757456,0.3608,85425.0,85424.0,0.1171076]
[1742472757857,0.3608,85425.0,85424.0,0.1819076]